Workbook

Sheet Eingabe
A4: =IF(YEAR(TODAY())>Hilfe!D1,"Version ist ungültig","Inflation - der schleichende Verlust!") -> Inflation - der schleichende Verlust!
C6: Anlage | D6: 20000
C7: Anlagedauer
A9: Die aktuelle Niedrigzinsphase bewirkt, dass Banken auf Festgeld oder auch Tagesgeld keine oder sogar negative Zinsen weitergeben. Viele Investoren sind sich nicht darüber bewusst, was dies für ihre Geldanlage bedeutet.
A10: Die nicht vorhandene Rendite und vor allem auch die negativ wirkende Inflation führen zu einem Vermögens- bzw. Kaufkraftverlust. Bereits seit ca. 10 Jahren ist der Zins niedriger als die Inflation:
F26: Daten: Statistisches Bundesamt, BMF
A28: Ein Blick in die Vergangenheit
A29: ="Für Ihre Anlage in Höhe von "&FIXED(D6,0)&" € hätte dies bedeutet:" -> Für Ihre Anlage in Höhe von 20.000 € hätte dies bedeutet:
A45: Viele Experten warnen, dass die Niedrigzinsphase noch lange nicht vorbei ist - evt. wird diese noch weitere 10 oder 20 Jahre dauern. Dies wäre eine Katastrophe für Ihre Anlage!
A50: Ein Zukunftsszenario
A51: ="Für Ihre geplante Anlagedauer von "&Hilfe!C10&" Jahren würde dies folgendes bedeuten:" -> Für Ihre geplante Anlagedauer von 20 Jahren würde dies folgendes bedeuten:
B63: Anlage heute | D63: ="Anlage in "&Hilfe!C10&" Jahren" -> Anlage in 20 Jahren
A64: ="Annahme: Inflation "&FIXED(Sonstiges!B5*100,2)&"% p.a., Bankzins = "&FIXED(Sonstiges!B7*100,2)&"% p.a., Kosten = 0% p.a." -> Annahme: Inflation 2,00% p.a., Bankzins = -0,50% p.a., Kosten = 0% p.a.
A65: ="Die Kaufkraft würde auf ca. "&FIXED(Hilfe!L13,0)&" € sinken und Sie hätten ca. "&FIXED(Hilfe!L14,0)&" € verloren!" -> Die Kaufkraft würde auf ca. 9.690 € sinken und Sie hätten ca. 10.310 € verloren!
A66: Mit welcher Anlageform sich Kaufkraftverluste vermeiden lassen
A67: Mit einer Investition in die Fondspolice CleVesto Select und einer Anlageaufteilung in Fonds und Sicherheit (Sicherungsguthaben) haben Sie eine gute Chance, den Kaufkraftverlust abzumildern oder sogar ganz zu vermeiden. Bei einem größeren Anteil an renditestarken Anlagen, wie Aktienfonds, könnten Sie sogar eine positive Rendite erwirtschaften. Natürlich gehen Sie damit gewisse Risiken von Kursschwankungen ein - aber Kaufkraft und damit reale Werte verlieren Sie auch bei einer Bankanlage durch die Inflation!
A68: ="Falls die Fondsanlage eine Rendite von "&FIXED(Sonstiges!B6*100,2)&"% und das Sicherungsguthaben eine Rendite von "&FIXED(Sonstiges!B4*100,2)&"% erwirtschaftet, könnten Sie eine Rendite von ca. "&FIXED((Hilfe!B8-Hilfe!B6)*100,2)&"% nach Inflation erwirtschaften!" -> Falls die Fondsanlage eine Rendite von 6,00% und das Sicherungsguthaben eine Rendite von 0,00% erwirtschaftet, könnten Sie eine Rendite von ca. 0,00% nach Inflation erwirtschaften!
A69: Hierzu müssten Sie lediglich folgende Anlageaufteilung bei CleVesto Select umsetzen:
D71: Anteil Sicherungsguthaben | E71: =Hilfe!D5 -> 0.6972840459
D72: Anteil Aktienfonds | E72: =Hilfe!D6 -> 0.3027159541
A74: Bei dieser Prognose ist folgendes berücksichtigt:
A75: ="Laufzeit: "&Hilfe!C10&" Jahre, "&Hilfe!G7&", Tarif Helvetia CleVesto Select, Inflation: "&FIXED(Hilfe!B6*100,2)&"%, Wunschrendite nach Inflation: "&FIXED((Hilfe!B8-Hilfe!B6)*100,2)&"%, Bankzins: "&FIXED(Sonstiges!B7*100,2)&"%." -> Laufzeit: 20 Jahre, Tarifgruppe N, Tarif Helvetia CleVesto Select, Inflation: 2,00%, Wunschrendite nach Inflation: 0,00%, Bankzins: -0,50%.
A77: Helvetia schweizerische Lebensversicherungs-AG Weißadlergasse 2 60311 Frankfurt a.M. T +49 (0)69 1332-575 Aufsichtsratsvorsitzender: Dr. Markus Gemperle Vorstand: Dipl.-Kfm. Volker Steck (Vors.), Dipl.-Kfm. Burkhard Gierse, Alexander Schorn Landesbank Hessen-Thüringen Girozentrale Kto: 15425036, BLZ: 500 500 00 , IBAN: DE97500500000015425036, BIC: HELADEFFXXX Registergericht Frankfurt a.M. HRB 28138, USt-IdNr. DE 811311232
A78: Quelle: Eigene Berechnungen auf Basis Ihrer Angaben und der gesetzlichen Daten. | G78: =Hilfe!D1 -> 2022
A79: Für die Richtigkeit der Angaben kann keine Gewähr übernommen werden, denn Programm- und Berechnungsfehler sind trotz sorgfältigstem Vorgehen nicht ausgeschlossen.

Sheet Sonstiges
A1: Sonstige Eingaben
A4: Rendite Helvetia Sicherungsguthaben (nach Kosten) | B4: 0
A5: angenommene Inflation | B5: 0.02
A6: Rendite Fonds | B6: 0.06
A7: Bankzins | B7: -0.005
A9: Wunschrendite (mind. Inflation)

Sheet Hilfe (hidden)
A1: einmalige Verwaltungskosten | B1: 0.02 | C1: Datum | D1: 2022 | E1: 1 | F1: Tarifgruppe N | G1: 0.01 | H1: bis 5000 | I1: 0.001 | J1: Wunschrendite | L1: 36
A2: Stückkosten | B2: =VLOOKUP(E6,E1:L5,8,FALSE) -> 36 | E2: 2 | F2: Tarifgruppe U | G2: 0.008 | H2: bis 10.000 | I2: 0.0025 | J2: 1 | K2: =IF(B6>B5,0%,B6) -> 0.02 | L2: 36
A3: Anlage | B3: =Eingabe!D6 -> 20000 | C3: =B3*(1-B1)-B2 -> 19564 | E3: 3 | F3: Tarifgruppe V | G3: 0.006 | H3: bis 50.000 | I3: 0.004 | J3: 2 | K3: =IF(K2+0.5%>$B$5,K2,K2+0.5%) -> 0.025 | L3: 28.8
A4: ETF | B4: 0.006 | C4: Aufteilung | E4: 4 | F4: Tarifgruppe W | G4: 0.004 | H4: bis 100.000 | I4: 0.0045 | J4: 3 | K4: =IF(K3+0.5%>$B$5,K3,K3+0.5%) -> 0.03 | L4: 28.8
A5: Wertentwicklung Fonds | B5: =Sonstiges!B6 -> 0.06 | C5: SG | D5: 0.6972840459 | E5: 5 | F5: Tarifgruppe M | G5: 0.002 | H5: bis 200.000 | I5: 0.005 | J5: 4 | K5: 0.035 | L5: 28.8
A6: Inflation | B6: =Sonstiges!B5 -> 0.02 | C6: Fonds | D6: =1-D5 -> 0.3027159541 | E6: 1 | F6: Auswahl | G6: =VLOOKUP(E6,E1:G5,3,FALSE) -> 0.01 | H6: bis 300.000 | I6: 0.0055 | J6: 5 | K6: 0.04 | L6: Stückkosten
A7: Wertentwicklung SG | B7: =Sonstiges!B4 -> 0 | G7: =VLOOKUP(E6,E1:G5,2,FALSE) -> Tarifgruppe N | H7: ab 300.000 | I7: 0.006 | J7: 1 | K7: =VLOOKUP(J7,J2:K6,2,FALSE) -> 0.02
A8: Wunschrendite | B8: =K7 -> 0.02
A9: Bankzins | B9: =Sonstiges!B7 -> -0.005
A10: Anlagedauer | B10: 16 | C10: =B10+4 -> 20
A12: Jahr | B12: SG Vermögen | C12: Überschüsse | D12: Fonds Vermögen | E12: Gesamt | F12: Wunscheinkommen | G12: Bankanlage mit Inflation | H12: Bankzins | I12: Werte Zielwertsuche | K12: Grafik
D13: =B5 -> 0.06 | E13: =C3 -> 19564 | I13: Gesamtwert | J13: =VLOOKUP(C10,A14:G53,5) -> 29718.94792 | K13: 0 | L13: =VLOOKUP(C10,A14:G53,7,FALSE)+M14 -> 9690.199294 | M13: 0
A14: 1 | B14: =C3*D5*(1+$B$7)-$B$2*$D$5 -> 13616.56285 | C14: =IF(E13<5000,$I$1,IF(E13<10000,$I$2,IF(E13<50000,$I$3,IF(E13<100000,$I$4,IF(E13<200000,$I$5,IF(E13<300000,$I$6,$I$7)))))) -> 0.004 | D14: =C3*D6*(1-$G$6+C14+$D$13)-$B$2*$D$6 -> 6231.243238 | E14: =B14+D14 -> 19847.80609 | F14: =B3*(1+$B$8) -> 20400 | G14: =B3*(1-$B$6)+H14 -> 19500 | H14: =IF(A14>$C$10,0,B3*$B$9) -> -100 | I14: Kaufkrafterhalt | J14: =VLOOKUP(C10,A14:G53,6) -> 29718.94792 | K14: =B3 -> 20000 | L14: =K14-L13 -> 10309.80071 | M14: =SUM(H14:H53) -> -2000
A15: 2 | B15: =B14*(1+$B$7)-$B$2*$D$5 -> 13591.46062 | C15: 0.004 | D15: =D14*(1-$G$6+C15+$D$13)-$B$2*$D$6 -> 6556.832599 | E15: =B15+D15 -> 20148.29322 | F15: =F14*(1+$B$8) -> 20808 | G15: =G14*(1-$B$6)+H15 -> 19010 | H15: =IF(A15>$C$10,0,H14) -> -100
A16: 3 | B16: =B15*(1+$B$7)-$B$2*$D$5 -> 13566.3584 | C16: 0.004 | D16: =D15*(1-$G$6+C16+$D$13)-$B$2*$D$6 -> 6900.003784 | E16: 20466.36218 | F16: =F15*(1+$B$8) -> 21224.16 | G16: =G15*(1-$B$6)+H16 -> 18529.8 | H16: =IF(A16>$C$10,0,H15) -> -100
A17: 4 | B17: 13541.25617 | C17: 0.004 | D17: 7261.706215 | E17: 20802.96239 | F17: 21648.6432 | G17: 18059.204 | H17: -100 | J17: Sparzins | K17: Inflation | L17: Differenz | M17: Anlage
A18: 5 | B18: 13516.15395 | C18: 0.004 | D18: 7642.940576 | E18: 21159.09452 | F18: 22081.61606 | G18: 17598.01992 | H18: -100 | I18: 2008 | M18: =B3 -> 20000
A19: 6 | B19: 13491.05172 | C19: 0.004 | D19: 8044.761592 | E19: 21535.81331 | F19: 22523.24839 | G19: 17146.05952 | H19: -100 | I19: 2009 | J19: 0.011 | K19: 0.003 | L19: =J19-K19 -> 0.008 | M19: =B3*(1+L19) -> 20160
A20: 7 | B20: 13465.94949 | C20: 0.004 | D20: 8468.280944 | E20: 21934.23044 | F20: 22973.71335 | G20: 16703.13833 | H20: -100 | I20: 2010 | J20: 0.007 | K20: 0.011 | L20: -0.004 | M20: =M19*(1+L20) -> 20079.36
A21: 8 | B21: 13440.84727 | C21: 0.004 | D21: 8914.670341 | E21: 22355.51761 | F21: 23433.18762 | G21: 16269.07556 | H21: -100 | I21: 2011 | J21: 0.008 | K21: 0.021 | L21: -0.013 | M21: 19818.32832
A22: 9 | B22: 13415.74504 | C22: 0.004 | D22: 9385.164765 | E22: 22800.90981 | F22: 23901.85137 | G22: 15843.69405 | H22: -100 | I22: 2012 | J22: 0.007 | K22: 0.02 | L22: -0.013 | M22: 19560.69005
A23: 10 | B23: 13390.64282 | C23: 0.004 | D23: 9881.065888 | E23: 23271.7087 | F23: 24379.8884 | G23: 15426.82017 | H23: -100 | I23: 2013 | J23: 0.004 | K23: 0.014 | L23: -0.01 | M23: 19365.08315
A24: 11 | B24: 13365.54059 | C24: 0.004 | D24: 10403.74567 | E24: 23769.28626 | F24: 24867.48617 | G24: 15018.28377 | H24: -100 | I24: 2014 | J24: 0.003 | K24: 0.01 | L24: -0.007 | M24: 19229.52757
A25: 12 | B25: 13340.43837 | C25: 0.004 | D25: 10954.65016 | E25: 24295.08853 | F25: 25364.83589 | G25: 14617.91809 | H25: -100 | I25: 2015 | J25: 0.002 | K25: 0.005 | L25: -0.003 | M25: 19171.83899
A26: 13 | B26: 13315.33614 | C26: 0.004 | D26: 11535.3035 | E26: 24850.63964 | F26: 25872.13261 | G26: 14225.55973 | H26: -100 | I26: 2016 | J26: 0.001 | K26: 0.005 | L26: -0.004 | M26: 19095.15163
A27: 14 | B27: 13290.23391 | C27: 0.004 | D27: 12147.31211 | E27: 25437.54603 | F27: 26389.57526 | G27: 13841.04854 | H27: -100 | I27: 2017 | J27: 0 | K27: 0.015 | L27: -0.015 | M27: 18808.72436
A28: 15 | B28: 13265.13169 | C28: 0.004 | D28: 12792.36919 | E28: 26057.50088 | F28: 26917.36677 | G28: 13464.22757 | H28: -100 | I28: 2018 | J28: 0 | K28: 0.018 | L28: -0.018 | M28: 18470.16732
A29: 16 | B29: 13240.02946 | C29: 0.004 | D29: 13472.25935 | E29: 26712.28882 | F29: 27455.7141 | G29: 13094.94301 | H29: -100 | I29: 2019 | J29: 0 | K29: 0.0182 | L29: -0.0182 | M29: 18134.01027
A30: 17 | B30: 13214.92724 | C30: 0.004 | D30: 14188.86358 | E30: 27403.79082 | F30: 28004.82838 | G30: 12733.04415 | H30: -100 | I30: 2020 | J30: -0.0045 | K30: 0.005 | L30: =J30-K30 -> -0.0095 | M30: =M29*(1+L30) -> 17961.73717
A31: 18 | B31: 13189.82501 | C31: 0.004 | D31: 14944.16444 | E31: 28133.98946 | F31: 28564.92495 | G31: 12378.38327 | H31: -100 | I31: 2021 | J31: -0.0005 | K31: 0.031 | L31: =J31-K31 -> -0.0315 | M31: =M30*(1+L31) -> 17395.94245
A32: 19 | B32: 13164.72279 | C32: 0.004 | D32: 15740.25155 | E32: 28904.97434 | F32: 29136.22345 | G32: 12030.81561 | H32: -100
A33: 20 | B33: 13139.62056 | C33: 0.004 | D33: 16579.32736 | E33: 29718.94792 | F33: 29718.94792 | G33: 11690.19929 | H33: -100
A34: 21 | B34: 13114.51833 | C34: =IF(E33<5000,$I$1,IF(E33<10000,$I$2,IF(E33<50000,$I$3,IF(E33<100000,$I$4,IF(E33<200000,$I$5,IF(E33<300000,$I$6,$I$7)))))) -> 0.004 | D34: 17463.71326 | E34: 30578.2316 | F34: 30313.32688 | G34: 11456.39531 | H34: 0 | I34: Schnitt | J34: =SUM(J19:J29)/11 -> 0.003909090909 | K34: =SUM(K19:K29)/11 -> 0.01274545455 | L34: =11 -> 11 | M34: =B3-M29 -> 1865.989727
A35: 22 | B35: 13089.41611 | C35: 0.004 | D35: 18395.856 | E35: 31485.27211 | F35: 30919.59342 | G35: 11227.2674 | H35: 0
A36: 23 | B36: 13064.31388 | C36: 0.004 | D36: 19378.33445 | E36: 32442.64834 | F36: 31537.98528 | G36: 11002.72205 | H36: 0
A37: 24 | B37: 13039.21166 | C37: 0.004 | D37: 20413.86674 | E37: 33453.0784 | F37: 32168.74499 | G37: 10782.66761 | H37: 0
A38: 25 | B38: 13014.10943 | C38: 0.004 | D38: 21505.31777 | E38: 34519.4272 | F38: 32812.11989 | G38: 10567.01426 | H38: 0
A39: 26 | B39: 12989.00721 | C39: 0.004 | D39: 22655.70715 | E39: 35644.71436 | F39: 33468.36229 | G39: 10355.67398 | H39: 0
A40: 27 | B40: 12963.90498 | C40: 0.004 | D40: 23868.21757 | E40: 36832.12255 | F40: 34137.72953 | G40: 10148.5605 | H40: 0
A41: 28 | B41: 12938.80276 | C41: 0.004 | D41: 25146.20354 | E41: 38085.0063 | F41: 34820.48412 | G41: 9945.589286 | H41: 0
A42: 29 | B42: 12913.70053 | C42: 0.004 | D42: 26493.20076 | E42: 39406.90129 | F42: 35516.89381 | G42: 9746.6775 | H42: 0
A43: 30 | B43: 12888.5983 | C43: 0.004 | D43: 27912.93582 | E43: 40801.53413 | F43: 36227.23168 | G43: 9551.74395 | H43: 0
A44: 31 | B44: 12863.49608 | C44: 0.004 | D44: 29409.33658 | E44: 42272.83266 | F44: 36951.77632 | G44: 9360.709071 | H44: 0
A45: 32 | B45: 12838.39385 | C45: 0.004 | D45: 30986.54299 | E45: 43824.93684 | F45: 37690.81184 | G45: 9173.49489 | H45: 0
A46: 33 | B46: 12813.29163 | C46: 0.004 | D46: 32648.91853 | E46: 45462.21016 | F46: 38444.62808 | G46: 8990.024992 | H46: 0
A47: 34 | B47: 12788.1894 | C47: =IF(E46<5000,$I$1,IF(E46<10000,$I$2,IF(E46<50000,$I$3,IF(E46<100000,$I$4,IF(E46<200000,$I$5,IF(E46<300000,$I$6,$I$7)))))) -> 0.004 | D47: 34401.06236 | E47: 47189.25176 | F47: 39213.52064 | G47: 8810.224492 | H47: 0
A48: 35 | B48: 12763.08718 | C48: =IF(E47<5000,$I$1,IF(E47<10000,$I$2,IF(E47<50000,$I$3,IF(E47<100000,$I$4,IF(E47<200000,$I$5,IF(E47<300000,$I$6,$I$7)))))) -> 0.004 | D48: 36247.82195 | E48: 49010.90913 | F48: 39997.79105 | G48: 8634.020002 | H48: 0
A49: 36 | B49: 12737.98495 | C49: =IF(E48<5000,$I$1,IF(E48<10000,$I$2,IF(E48<50000,$I$3,IF(E48<100000,$I$4,IF(E48<200000,$I$5,IF(E48<300000,$I$6,$I$7)))))) -> 0.004 | D49: 38194.30656 | E49: 50932.29151 | F49: 40797.74687 | G49: 8461.339602 | H49: 0
A50: 37 | B50: 12712.88272 | C50: 0.0045 | D50: 40264.9985 | E50: 52977.88122 | F50: 41613.70181 | G50: 8292.11281 | H50: 0
A51: 38 | B51: 12687.7805 | C51: 0.0045 | D51: 42448.54314 | E51: 55136.32364 | F51: 42445.97585 | G51: 8126.270554 | H51: 0
A52: 39 | B52: 12662.67827 | C52: 0.0045 | D52: 44751.09097 | E52: 57413.76924 | F52: 43294.89536 | G52: 7963.745143 | H52: 0
A53: 40 | B53: 12637.57605 | C53: 0.0045 | D53: 47179.12765 | E53: 59816.7037 | F53: 44160.79327 | G53: 7804.47024 | H53: 0
